bitfinex/quotes_ETHUSD_20250505
["timestamp","ask_amount","ask_price","bid_price","bid_amount"]
[1746478704571,6.29727907,1813.4,1813.1,4.647]
[1746478704771,6.3265051,1813.4,1813.1,4.647]
[1746478706005,6.3265051,1813.4,1813.1,10.16238584]
[1746478707415,11.84127265,1813.4,1813.1,4.647]
[1746478707705,5.51494524,1813.3,1813.1,4.647]
[1746478709099,11.03003349,1813.3,1813.1,4.647]
[1746478709303,5.51494524,1813.3,1813.1,4.647]
[1746478710207,5.54433743,1813.2,1813.1,4.647]
[1746478710407,5.5151114,1813.2,1813.1,4.647]
[1746478710779,6.29728377,1813.4,1813.1,5.4388]
[1746478711198,11.81203258,1813.4,1813.1,5.4388]
[1746478711481,5.51452684,1813.4,1813.1,10.95411368]
[1746478711882,11.02925574,1813.4,1813.1,5.4388]
[1746478713312,5.51480931,1813.3,1813.1,5.4388]
[1746478718040,5.51480931,1813.3,1813.1,4.647]
[1746478718428,11.02989754,1813.3,1813.1,4.647]
[1746478718794,5.51480931,1813.3,1813.1,4.647]
[1746478719524,5.5151114,1813.2,1813.1,4.647]
[1746478724552,5.5151114,1813.2,1812.9,4.69815428]
[1746478725459,11.03044414,1813.2,1812.9,4.69815428]
[1746478725665,5.54433743,1813.2,1812.9,4.643]
[1746478726033,5.5151114,1813.2,1812.9,4.643]
[1746478726362,5.5151114,1813.2,1812.9,10.15899988]
[1746478727455,5.51499459,1813.3,1812.9,10.2139745]
[1746478727752,5.54422062,1813.3,1812.9,11.86585596]
[1746478727953,5.54422062,1813.3,1812.9,11.81070142]
[1746478728351,11.05926321,1813.3,1812.9,11.81070142]
[1746478728556,11.03003718,1813.3,1812.9,11.81070142]
[1746478728856,5.51499459,1813.3,1812.9,17.32654513]
[1746478729050,5.51499459,1813.3,1812.9,11.81070142]
[1746478729563,5.54422062,1813.3,1812.9,11.81070142]
[1746478729954,5.54422062,1813.3,1812.9,17.32650618]
[1746478730163,0.02922603,1813.3,1813.0,6.31329462]
[1746478730371,5.51465229,1813.4,1813.1,5.51531924]
[1746478730850,5.51465229,1813.4,1812.9,4.643]
[1746478730851,5.51473221,1813.4,1813.2,0.7978]
[1746478731056,5.51559589,1813.1,1813.0,0.7978]
[1746478731353,5.51559589,1813.1,1813.0,1.34188]
[1746478731551,5.5157198,1813.0,1812.9,4.643]
[1746478731771,5.5157198,1813.0,1812.8,0.7529]
[1746478731772,5.51623637,1812.9,1812.8,4.643]
[1746478731954,6.3675624,1812.9,1812.8,4.643]
[1746478733029,0.8221,1812.9,1812.8,4.643]
[1746478733677,0.02922603,1813.0,1812.8,10.15922493]
[1746478733967,5.51446346,1813.5,1812.9,5.51586193]
[1746478733968,6.2873702,1813.3,1812.9,5.51586193]
[1746478734180,5.5145941,1813.4,1813.0,5.5155927]
[1746478734458,3.02922603,1813.4,1813.1,6.28699282]
[1746478734630,5.54393075,1813.4,1813.1,0.7717]
[1746478734831,6.72699926,1813.4,1813.1,0.7717]
[1746478735057,5.51487105,1813.3,1813.1,0.7717]
[1746478735259,6.286813,1813.5,1813.1,0.7717]
[1746478735571,6.31603903,1813.5,1813.1,6.28694686]
[1746478736128,5.51453421,1813.4,1813.1,0.7717]
[1746478736331,6.14615023,1813.4,1813.1,0.7717]
[1746478736731,3.70430823,1813.3,1813.1,0.7717]
[1746478737566,3.70430823,1813.3,1813.1,6.28704371]
[1746478737764,3.70430823,1813.3,1813.1,6.28709364]
[1746478738465,3.70430823,1813.3,1813.1,0.7717]
[1746478739136,3.70430823,1813.3,1813.1,6.28711266]
[1746478739569,3.70430823,1813.3,1813.1,10.93011266]
[1746478739768,3.70430823,1813.3,1813.1,4.643]
[1746478740064,3.70430823,1813.3,1813.1,10.15830806]
[1746478740277,0.7724,1813.5,1813.1,10.15830806]
[1746478740278,6.31602635,1813.5,1813.1,4.643]
[1746478740483,6.14629259,1813.4,1813.1,4.643]
[1746478740838,6.17551862,1813.4,1813.1,4.643]
[1746478741879,0.02922603,1813.4,1813.1,10.15823348]
[1746478742380,5.54375944,1813.4,1813.1,10.15823348]
[1746478742676,5.51602404,1812.9,1812.6,0.8288]
[1746478742877,5.5164853,1812.8,1812.6,0.8288]
[1746478743182,5.5160426,1812.9,1812.6,1.3264971]
[1746478743672,5.51553217,1813.1,1812.7,0.05515998]
[1746478743878,11.06047301,1813.1,1812.7,5.57175575]
[1746478744176,11.03124698,1813.1,1812.7,5.57175575]
[1746478745486,5.51553217,1813.1,1812.7,5.57175575]
[1746478745685,5.51553217,1813.1,1812.8,0.8225]
[1746478746456,5.5447582,1813.1,1812.8,0.8225]
[1746478746660,5.51573643,1813.0,1812.8,0.8225]
[1746478747665,5.51553217,1813.1,1812.8,0.8225]
[1746478747863,11.06044838,1813.1,1812.8,0.8225]
[1746478748082,11.03122235,1813.1,1812.8,0.8225]
[1746478748273,5.51574068,1813.0,1812.8,0.8225]
[1746478749693,5.54507558,1813.0,1812.6,0.7705]
[1746478749879,5.51641168,1812.8,1812.6,0.7705]
[1746478750598,5.5161326,1812.9,1812.6,0.7705]
[1746478751296,5.54535863,1812.9,1812.6,0.7705]
[1746478752009,5.51634322,1812.8,1812.6,0.7705]
[1746478752196,5.51634322,1812.8,1812.5,0.8258]
[1746478752197,5.51632833,1812.8,1812.5,0.8258]
[1746478753911,5.51632833,1812.8,1812.5,6.34300698]
[1746478754625,5.54555436,1812.8,1812.5,6.34300698]
[1746478755138,1.21664839,1812.8,1812.4,4.643]
[1746478755305,5.51724137,1812.5,1812.4,4.643]
[1746478755634,5.5464674,1812.5,1812.4,4.643]
[1746478755799,5.51724137,1812.5,1812.4,4.643]
[1746478756593,5.51693699,1812.6,1812.4,5.4216]
[1746478756794,5.54616302,1812.6,1812.4,5.4216]
[1746478757930,6.32505232,1812.7,1812.4,5.4216]
[1746478758124,5.54597835,1812.7,1812.4,10.93914095]
[1746478758941,5.51646118,1812.8,1812.4,10.93897438]
[1746478759143,0.02922603,1812.8,1812.4,6.51549744]
[1746478759294,5.51613866,1812.9,1812.6,6.33155041]
[1746478759509,5.51584238,1813.0,1812.6,11.84838566]
[1746478759742,5.51584238,1813.0,1812.7,5.51650049]
[1746478760310,5.54485672,1813.1,1812.7,11.08812379]
[1746478760536,5.54485672,1813.1,1812.8,4.64]
[1746478760738,9.24916495,1813.1,1812.8,4.64]
[1746478761109,3.73353426,1813.1,1812.8,10.15629015]
[1746478761311,9.21976522,1813.1,1812.8,12.0068352]
[1746478761953,9.21976522,1813.1,1812.8,6.49054505]
[1746478762111,3.70430823,1813.1,1812.9,5.5158655]
[1746478762441,3.70430823,1813.1,1812.8,12.00669902]
[1746478762643,3.70430823,1813.1,1812.9,1.2006699]
[1746478764326,5.54437007,1813.2,1812.9,1.2006699]
[1746478766051,5.51555381,1813.1,1812.8,10.98564107]
[1746478766972,5.51555381,1813.1,1812.8,5.4694]
[1746478767471,5.51555381,1813.1,1812.8,10.98570342]
[1746478768089,3.21714879,1813.2,1812.8,5.4694]
[1746478768267,5.51602404,1812.9,1812.8,4.64]
[1746478768472,5.51584359,1813.0,1812.8,4.64]
[1746478768473,11.03184655,1813.0,1812.8,4.64]
[1746478768667,5.51602404,1812.9,1812.8,4.64]
[1746478768851,5.51584359,1813.0,1812.8,4.64]
[1746478769392,11.06108799,1813.0,1812.8,4.64]
[1746478769561,5.51584359,1813.0,1812.8,4.64]
[1746478769757,5.54506962,1813.0,1812.8,4.64]
[1746478770170,8.76221841,1813.0,1812.8,4.64]
[1746478770376,5.51602404,1812.9,1812.8,4.64]
[1746478770840,5.54525007,1812.9,1812.8,4.64]
[1746478772047,5.51602404,1812.9,1812.8,4.64]
[1746478772545,9.68677419,1813.0,1812.8,4.64]
[1746478772843,9.71600022,1813.0,1812.8,4.64]
[1746478773046,6.49885143,1813.0,1812.8,4.64]
[1746478773574,5.51602404,1812.9,1812.8,4.64]
[1746478774482,11.98561586,1813.0,1812.8,4.64]
[1746478774991,6.4696254,1813.0,1812.8,4.64]
[1746478775198,6.49885143,1813.0,1812.8,4.64]
[1746478775801,5.51602404,1812.9,1812.8,4.64]
[1746478776101,7.03922647,1812.9,1812.8,4.64]
[1746478776797,5.51693699,1812.6,1812.5,0.7901]
[1746478776986,14.25082636,1812.7,1812.4,4.64]
[1746478777189,8.73392545,1812.7,1812.4,4.64]
[1746478777384,5.51695816,1812.6,1812.4,4.64]
[1746478777589,5.51677666,1812.7,1812.4,4.64]
[1746478777787,5.54600269,1812.7,1812.4,4.64]
[1746478777983,5.54600269,1812.7,1812.4,10.15741]
[1746478778186,0.02922603,1812.7,1812.4,10.15741]
[1746478778385,5.54594555,1812.7,1812.4,10.15741]
[1746478778996,5.54594555,1812.7,1812.4,4.64]
[1746478780206,0.02922603,1812.7,1812.4,4.64]
[1746478780501,6.36449044,1812.8,1812.4,10.15735014]
[1746478780704,5.54569044,1812.8,1812.4,10.15735014]
[1746478781068,11.0622542,1812.8,1812.4,10.15735014]
[1746478781273,11.033034,1812.8,1812.4,10.15735014]
[1746478781498,5.51646441,1812.8,1812.4,10.15735014]
[1746478781698,6.571372,1812.8,1812.4,10.15735014]
[1746478782779,12.08793652,1812.8,1812.4,10.15735014]
[1746478782978,12.05871049,1812.8,1812.4,10.15735014]
[1746478783204,6.54214597,1812.8,1812.4,10.15735014]
[1746478783512,6.571372,1812.8,1812.4,10.15735014]
[1746478783688,5.54569044,1812.8,1812.4,10.15735014]
[1746478785815,5.54569044,1812.8,1812.5,5.51723073]
[1746478786592,5.54569044,1812.8,1812.5,6.29843073]
[1746478786814,5.51590586,1813.0,1812.6,5.51685207]
[1746478787005,5.54513189,1813.0,1812.6,5.51685207]
[1746478787507,6.42914177,1813.0,1812.6,5.51685207]
[1746478787709,6.42914177,1813.0,1812.6,5.57201593]
[1746478788217,6.42914177,1813.0,1812.6,5.51674766]
[1746478788616,5.51616354,1812.9,1812.5,6.29823344]
[1746478788816,5.51616354,1812.9,1812.6,5.51683983]
[1746478789024,5.51616354,1812.9,1812.6,10.15483983]
[1746478790541,6.39991574,1813.0,1812.6,10.15483983]
[1746478790542,6.39991574,1813.0,1812.6,15.67156676]
[1746478790842,5.51602766,1812.9,1812.6,10.15472693]
[1746478791398,5.54513189,1813.0,1812.6,10.15472693]
[1746478792233,5.54513189,1813.0,1812.6,15.67144248]
[1746478793339,5.54513189,1813.0,1812.7,5.51662084]
[1746478793637,5.54513189,1813.0,1812.6,10.15471555]
[1746478793828,5.51606824,1812.9,1812.6,4.638]
[1746478794638,6.62197483,1813.0,1812.6,10.15491497]
[1746478794837,6.2735974,1813.2,1812.8,5.51619263]
[1746478795038,5.54442343,1813.2,1812.8,5.5713491]
[1746478795334,5.5151974,1813.2,1812.8,5.5713491]
[1746478795539,5.54442343,1813.2,1812.8,5.5713491]
[1746478795742,5.5151974,1813.2,1812.8,6.7553592]
[1746478795922,5.5151974,1813.2,1812.9,6.32674826]
[1746478796310,5.54442343,1813.2,1812.9,6.32674826]
[1746478796641,5.5151974,1813.2,1812.9,6.32674826]
[1746478796941,5.54442343,1813.2,1812.9,0.8108]
[1746478797152,5.54442343,1813.2,1812.9,1.56190027]
[1746478797925,5.54442343,1813.2,1812.9,7.07788778]
[1746478798155,5.5151974,1813.2,1812.9,7.07788778]
[1746478798352,9.21911722,1813.3,1812.9,7.07788778]
[1746478798675,9.21911722,1813.3,1812.9,7.13286089]
[1746478798843,3.70430823,1813.3,1813.0,11.74444896]
[1746478799158,3.70430823,1813.3,1813.0,10.86581634]
[1746478800331,3.70430823,1813.3,1813.1,5.51541345]
[1746478800525,3.70430823,1813.3,1813.1,6.29391345]
[1746478801256,0.02922603,1813.4,1813.1,6.29391345]
[1746478801468,5.54378385,1813.4,1813.1,0.7785]
[1746478801956,5.51502751,1813.3,1813.1,0.7785]
[1746478802155,5.51531572,1813.2,1813.0,4.637]
[1746478802359,5.5149788,1813.3,1813.0,4.637]
[1746478802554,0.772,1813.2,1813.0,4.637]
[1746478802881,6.31651915,1813.2,1813.0,4.637]
[1746478804884,0.80122603,1813.2,1813.0,4.637]
[1746478805876,6.31634913,1813.2,1813.0,4.637]
[1746478806280,0.80122603,1813.2,1813.0,4.637]
[1746478808200,6.31646252,1813.2,1813.0,4.637]
[1746478810002,5.51541558,1813.1,1813.0,4.637]
[1746478810308,5.51541558,1813.1,1812.7,4.637]
[1746478810309,5.51634611,1812.8,1812.7,4.637]
[1746478811006,8.73336424,1812.9,1812.7,4.637]
[1746478811182,0.02922603,1812.9,1812.7,4.637]
[1746478811382,0.02922603,1813.0,1812.7,10.94815631]
[1746478811703,5.54477215,1813.1,1812.7,10.94815631]
[1746478812207,5.51578286,1813.0,1812.7,10.94815631]
[1746478812703,5.54500889,1813.0,1812.7,10.94815631]
[1746478813305,0.02922603,1813.0,1812.7,12.59464815]
[1746478813682,6.29910689,1813.2,1812.8,5.5162346]
[1746478813898,5.54467667,1813.1,1812.8,5.5162346]
[1746478814619,0.02922603,1813.1,1812.8,5.5162346]
[1746478814778,5.5446443,1813.1,1812.8,7.327325]
[1746478816089,5.5446443,1813.1,1812.8,1.8110904]
[1746478817108,5.5159301,1813.0,1812.8,1.8110904]
[1746478817411,5.5159301,1813.0,1812.7,10.94823781]
[1746478817614,5.54515613,1813.0,1812.7,10.94823781]
[1746478818022,5.51607602,1812.9,1812.7,5.4317]
[1746478818380,5.54530205,1812.9,1812.7,5.4317]
[1746478818674,0.02922603,1812.9,1812.7,5.4317]
[1746478819724,0.02922603,1812.9,1812.7,0.7947]
[1746478820034,0.02922603,1812.9,1812.7,5.4287]
[1746478820717,5.54515613,1813.0,1812.7,5.4287]
[1746478821303,5.54515613,1813.0,1812.7,10.94518758]
[1746478821499,0.02922603,1813.0,1812.7,12.59137899]
[1746478822117,5.54497078,1813.0,1812.7,12.59137899]
[1746478824530,5.54497078,1813.0,1812.7,10.94518758]
[1746478826509,0.02287285,1813.1,1812.8,5.57128167]
[1746478826709,0.02287285,1813.1,1812.7,10.94515453]
[1746478826710,5.51574939,1813.0,1812.7,10.94515453]
[1746478826911,0.02922603,1812.9,1812.7,5.4287]
[1746478827108,5.54536149,1812.9,1812.7,5.4287]
[1746478827308,0.02922603,1812.9,1812.7,5.4287]
[1746478828835,0.02922603,1813.0,1812.7,10.94531065]
[1746478829036,0.02922603,1813.0,1812.7,10.94519462]
[1746478829333,5.56767639,1813.1,1812.7,16.46161231]
[1746478829496,5.56767639,1813.1,1812.8,5.51632329]
[1746478829701,0.05209888,1813.1,1812.8,5.51632329]
[1746478830128,0.02287285,1813.1,1812.8,5.51632329]
[1746478830435,0.02287285,1813.1,1812.9,5.51593811]
[1746478830631,0.02287285,1813.1,1813.0,5.5157198]
[1746478830934,0.02287285,1813.1,1813.0,6.2907198]
[1746478832138,0.02287285,1813.1,1813.0,6.3458684]
[1746478832303,0.02287285,1813.1,1813.0,6.2907198]
[1746478832504,0.02287285,1813.1,1813.0,7.47138559]
[1746478834553,5.51455424,1813.4,1813.0,7.47138559]
[1746478834735,5.51455424,1813.4,1813.1,10.14928249]
[1746478835842,5.51493811,1813.3,1813.1,4.634]
[1746478836150,5.5151114,1813.2,1813.1,4.634]
[1746478836518,10.66519117,1813.2,1813.1,4.634]
[1746478836849,6.31673252,1812.9,1812.8,4.634]
[1746478837047,5.51712533,1812.6,1812.5,4.634]
[1746478837340,5.51678089,1812.7,1812.5,4.634]
[1746478838145,5.54575804,1812.8,1812.5,4.634]
[1746478838943,5.5166451,1812.7,1812.5,4.634]
[1746478839451,5.51653201,1812.8,1812.5,4.634]
[1746478839748,5.54575804,1812.8,1812.5,10.15123604]
[1746478840112,5.51653201,1812.8,1812.5,10.15123604]
[1746478840451,5.54575804,1812.8,1812.5,10.15123604]
[1746478840622,5.54575804,1812.8,1812.5,4.634]
[1746478840623,5.51653201,1812.8,1812.5,4.634]
[1746478842751,5.51653201,1812.8,1812.5,10.1512411]
[1746478843051,5.51587128,1813.0,1812.6,6.33907647]
[1746478843228,5.51587128,1813.0,1812.7,5.51662758]
[1746478843547,15.55055742,1813.1,1812.7,5.51662758]
[1746478843715,5.51572872,1813.0,1812.7,5.51662758]
[1746478844625,10.03486649,1813.1,1812.7,5.51662758]
[1746478844825,10.06409252,1813.1,1812.7,11.033048]
[1746478845019,10.06409252,1813.1,1812.8,5.51632114]
[1746478845940,6.36347594,1813.1,1812.8,5.51632114]
[1746478846575,0.84792603,1813.1,1812.8,5.51615087]
[1746478846775,0.02922603,1813.2,1812.9,10.94581145]
[1746478847735,0.02922603,1813.2,1813.0,5.51568822]
[1746478847936,0.7979,1813.3,1813.0,5.51568822]
[1746478848264,0.82712603,1813.3,1813.0,5.51568822]
[1746478848475,9.2153449,1813.4,1813.0,7.21689199]
[1746478848680,9.24436155,1813.4,1813.1,5.51525028]
[1746478849557,5.54374497,1813.4,1813.0,7.16173838]
[1746478850656,5.51489978,1813.3,1813.0,7.16173838]
[1746478852480,13.2163202,1813.5,1812.9,5.4298]
[1746478852654,11.03068226,1813.2,1812.9,4.632]
[1746478852860,5.51528787,1813.2,1812.9,4.632]
[1746478853075,5.51528787,1813.2,1812.9,10.14790377]
[1746478854388,5.5445139,1813.2,1812.9,4.632]
[1746478854681,5.51558881,1813.1,1812.9,4.632]
[1746478856381,5.51545362,1813.1,1812.9,5.72890787]
[1746478856566,5.51545362,1813.1,1812.9,4.632]
[1746478856767,6.3449887,1813.2,1812.9,10.14797199]
[1746478856947,6.37421473,1813.2,1812.9,10.14797199]
[1746478857497,5.54451473,1813.2,1812.9,10.14797199]
[1746478859980,5.54451473,1813.2,1812.9,4.632]
[1746478859981,11.05989104,1813.2,1812.9,4.632]
[1746478860282,11.0306397,1813.2,1812.9,4.632]
[1746478860453,5.54451473,1813.2,1812.9,4.632]
[1746478862359,5.51549415,1813.1,1812.9,4.632]
[1746478862786,5.5152887,1813.2,1812.9,4.632]
[1746478862958,5.54451473,1813.2,1812.9,4.632]
[1746478863154,5.51544461,1813.1,1812.9,4.632]
[1746478863875,5.51544461,1813.1,1812.9,4.60912715]
[1746478864074,5.51528991,1813.2,1812.9,4.60912715]
[1746478864272,7.05222866,1813.2,1812.9,4.60912715]
[1746478864769,7.05222866,1813.2,1812.9,10.12512734]
[1746478865991,1.53693875,1813.2,1812.9,10.12512734]
[1746478866194,6.34468846,1813.3,1812.9,15.69595567]
[1746478866494,11.02946605,1813.4,1813.0,6.34008972]
[1746478866700,5.51466307,1813.4,1813.0,11.85561405]
[1746478866869,5.5438891,1813.4,1813.1,5.51529079]
[1746478867684,5.5438891,1813.4,1813.0,6.34002433]
[1746478867885,5.5438891,1813.4,1813.0,7.98652488]
[1746478868086,5.51554616,1813.1,1812.9,4.60912715]
[1746478868287,11.06045983,1813.1,1812.9,4.60912715]
[1746478868485,5.51554616,1813.1,1812.9,4.60912715]
[1746478868688,5.54477219,1813.1,1812.9,4.60912715]
[1746478869656,8.73286859,1813.0,1812.9,4.60912715]
[1746478869862,5.51663264,1812.7,1812.6,4.632]
[1746478870063,6.31185867,1812.7,1812.6,4.632]
[1746478870378,0.79522603,1812.7,1812.6,4.632]
[1746478870706,10.24,1813.2,1812.7,5.51649231]
[1746478870707,0.7769,1813.1,1812.7,5.51649231]
[1746478870870,8.51457886,1813.4,1812.9,5.51587806]
[1746478870871,6.29187739,1813.3,1812.9,5.51587806]
[1746478871072,5.54420342,1813.3,1813.0,6.2716075]
[1746478871287,5.54420342,1813.3,1813.0,10.9036075]
[1746478871666,6.36609969,1813.4,1813.0,10.9036075]
[1746478871897,6.39532572,1813.4,1813.0,10.9036075]
[1746478872199,5.51497021,1813.3,1813.0,5.3879]
[1746478872698,5.54419624,1813.3,1813.0,5.3879]
[1746478873700,9.58324848,1813.4,1813.0,10.90343717]
[1746478873997,5.51483061,1813.3,1813.0,10.90343717]
[1746478874800,5.54405664,1813.3,1813.0,5.3879]
[1746478876111,11.05916117,1813.3,1813.0,5.3879]
[1746478876270,5.51483061,1813.3,1813.0,5.3879]
[1746478876604,5.54405664,1813.3,1813.0,5.3879]
[1746478877901,0.02922603,1813.3,1813.0,10.9035819]
[1746478878105,8.7318193,1813.4,1813.0,10.9035819]
[1746478878282,15.7780867,1813.4,1813.0,10.9035819]
[1746478878483,15.74886067,1813.4,1813.0,10.9035819]
[1746478879310,3.70061658,1813.7,1813.2,0.7618]
[1746478879506,9.24356406,1813.7,1813.3,5.51471793]
[1746478879692,9.24356406,1813.7,1813.2,0.7618]
[1746478879693,5.51408322,1813.6,1813.2,0.7618]
[1746478879899,5.54370159,1813.5,1813.2,0.7618]
[1746478880093,11.05819606,1813.5,1813.2,0.7618]
[1746478880295,5.51472043,1813.4,1813.0,10.97618725]
[1746478880469,5.51533231,1813.2,1813.0,5.4606]
[1746478880673,5.51533231,1813.2,1813.0,4.632]
[1746478880995,5.54455834,1813.2,1813.0,4.632]
[1746478881368,0.02922603,1813.2,1813.0,4.632]
[1746478881700,5.54424052,1813.3,1813.0,4.632]
[1746478883109,5.51512392,1813.2,1813.0,4.632]
[1746478883607,5.54434995,1813.2,1813.0,4.632]
[1746478884419,5.51541558,1813.1,1813.0,4.632]
[1746478884575,11.03004584,1813.3,1813.0,4.632]
[1746478884911,5.54435838,1813.2,1813.0,4.632]
[1746478887211,11.05971905,1813.2,1813.0,4.632]
[1746478887414,5.51513235,1813.2,1813.0,4.632]
[1746478887710,5.54435838,1813.2,1813.0,4.632]
[1746478888512,0.02922603,1813.2,1813.0,4.632]
[1746478888708,5.5149806,1813.3,1813.0,10.14768123]
[1746478889717,0.02922603,1813.3,1813.1,5.51532989]
[1746478890017,22.45458409,1813.6,1813.2,11.78088123]
[1746478890176,9.21458409,1813.6,1813.2,6.26590424]
[1746478890377,3.70061658,1813.6,1813.3,5.51467327]
[1746478890609,3.70061658,1813.6,1813.4,10.14448625]
[1746478891015,3.70061658,1813.6,1813.4,10.90478625]
[1746478893017,3.70061658,1813.6,1813.4,5.3903]
[1746478893380,5.54295343,1813.7,1813.4,5.3903]
[1746478893809,5.54295343,1813.7,1813.4,10.90480108]
[1746478894019,13.26377584,1813.8,1813.4,10.90480108]
[1746478894184,10.04662705,1813.8,1813.4,10.95994115]
[1746478894511,10.07585308,1813.8,1813.4,10.95994115]
[1746478894920,3.72984261,1813.8,1813.5,5.51407161]
[1746478895213,9.24315894,1813.8,1813.4,12.55204367]
[1746478895918,14.75670618,1813.8,1813.4,12.55204367]
[1746478896217,3.70061658,1813.8,1813.5,5.51397364]
[1746478896918,3.70061658,1813.8,1813.6,5.51389225]
[1746478897087,5.54237833,1813.9,1813.6,5.51389225]
[1746478897088,5.5131523,1813.9,1813.6,5.51389225]
[1746478897520,1.2086005,1814.0,1813.6,6.61667884]
[1746478897717,0.4059005,1814.0,1813.7,6.30458392]
[1746478898216,0.4059005,1814.0,1813.8,10.14219117]
[1746478898605,0.4059005,1814.0,1813.8,10.14215351]
[1746478899006,0.4059005,1814.0,1813.8,4.629]
[1746478899214,0.4059005,1814.0,1813.8,10.1420995]
[1746478900418,0.4059005,1814.0,1813.8,11.84187115]
[1746478900620,0.4059005,1814.0,1813.8,11.7867437]
[1746478901126,0.4059005,1814.0,1813.9,5.51298307]
[1746478902002,0.4059005,1814.0,1813.9,6.36510985]
[1746478902325,0.4059005,1814.0,1813.9,6.30998307]
[1746478902619,0.4059005,1814.0,1813.9,2.2739172]
[1746478902803,0.4059005,1814.0,1813.8,11.7867437]
[1746478903120,0.4059005,1814.0,1813.8,17.29984177]
[1746478903325,0.4059005,1814.0,1813.9,5.51298307]
[1746478905329,0.4059005,1814.0,1813.9,6.30308307]
[1746478908825,0.4059005,1814.0,1813.9,6.3582059]
[1746478909128,0.4059005,1814.0,1813.9,8.11757803]
[1746478911614,0.4059005,1814.0,1813.9,8.17269681]
[1746478914230,0.4059005,1814.0,1813.9,8.11757803]
[1746478917532,0.4059005,1814.0,1813.9,8.17269539]
[1746478918326,0.4059005,1814.0,1813.9,8.72269539]
[1746478918833,0.4059005,1814.0,1813.9,8.66757803]
[1746478919608,0.4059005,1814.0,1813.9,11.72269471]
[1746478919933,0.4059005,1814.0,1813.9,11.66757803]
[1746478921438,0.4059005,1814.0,1813.9,17.79757803]
[1746478929060,0.7585,1815.2,1814.9,5.50969644]
[1746478929257,0.7585,1815.2,1815.1,5.50933832]
[1746478929420,5.5083194,1815.5,1815.2,5.5087883]
[1746478929421,0.7585,1815.5,1815.2,5.5087883]
[1746478929624,0.7585,1815.5,1815.2,5.56387074]
[1746478930232,0.7585,1815.5,1815.1,3.97134879]
[1746478930444,0.7585,1815.5,1815.2,5.50900476]
[1746478931132,0.7585,1815.5,1815.3,5.50873108]
[1746478931336,0.7585,1815.5,1815.4,4.624]
[1746478932018,0.7585,1815.5,1815.4,10.13242789]
[1746478932215,0.7585,1815.5,1815.4,10.89133529]
[1746478932414,0.7575,1815.7,1815.4,5.43798546]
[1746478932619,0.7575,1815.7,1815.5,5.50793952]
[1746478932857,4.10651708,1815.8,1815.6,5.56289341]
[1746478933058,4.10651708,1815.8,1815.6,11.07052714]
[1746478933354,4.10651708,1815.8,1815.7,11.72466655]
[1746478933655,4.10651708,1815.8,1815.7,8.50751776]
[1746478933826,4.86401708,1815.8,1815.4,11.5129074]
[1746478934022,10.37138851,1815.8,1815.4,4.624]
[1746478934228,4.89324311,1815.8,1815.4,4.624]
[1746478934558,10.40059229,1815.8,1815.4,10.13241734]
[1746478934856,0.7575,1815.4,1814.9,0.7542]
[1746478935165,9.48328994,1815.4,1815.0,4.621]
[1746478935324,2.28880337,1815.4,1815.0,10.13059526]
[1746478935524,9.51246619,1815.4,1815.0,4.621]
[1746478935726,5.50887484,1815.3,1815.0,4.621]
[1746478935992,9.48323607,1815.4,1815.0,4.621]
[1746478936276,6.29531331,1815.4,1815.0,4.621]
[1746478936483,6.29531331,1815.4,1815.1,5.50931794]
[1746478936484,0.7575,1815.4,1815.1,5.50931794]
[1746478936978,0.7575,1815.4,1815.1,1.01303179]
[1746478937141,0.7575,1815.4,1815.2,5.50882876]
[1746478937578,0.7575,1815.4,1815.2,5.5090147]
[1746478937768,0.7575,1815.4,1815.1,6.52221354]
[1746478938156,0.7575,1815.4,1815.2,5.50900154]
[1746478938474,0.7503,1815.7,1815.3,5.56381442]
[1746478938682,0.7503,1815.7,1815.4,10.12942595]
[1746478938843,0.7503,1815.7,1815.4,4.621]
[1746478939044,6.25796695,1815.7,1815.4,4.621]
[1746478939240,5.50812448,1815.5,1815.4,4.621]
[1746478939480,10.02930832,1815.5,1815.4,4.621]
[1746478939703,10.05853435,1815.5,1815.4,4.621]
[1746478939975,6.84138556,1815.5,1815.4,4.621]
[1746478940367,1.33326108,1815.5,1815.4,4.621]
[1746478940562,6.81215953,1815.5,1815.4,4.621]
[1746478940779,6.84138556,1815.5,1815.4,4.621]
[1746478942151,6.81215953,1815.5,1815.4,4.621]
[1746478942350,0.7503,1815.5,1815.4,4.621]
[1746478944285,1.1679005,1815.8,1815.5,5.50812448]
[1746478944459,5.50772319,1815.7,1815.4,4.621]
[1746478944796,6.67527196,1815.8,1815.4,4.621]
[1746478944984,5.50759183,1815.7,1815.4,4.621]
[1746478945363,5.53674379,1815.7,1815.4,4.621]
[1746478945565,6.25922448,1815.5,1815.4,4.621]
[1746478945761,0.7511,1815.5,1815.4,4.621]
[1746478946295,6.25922448,1815.5,1815.4,4.621]
[1746478946595,0.7511,1815.5,1815.4,4.621]
[1746478946892,6.25922448,1815.5,1815.4,4.621]
[1746478947058,7.46516633,1815.5,1815.4,4.621]
[1746478950803,7.4359403,1815.5,1815.4,4.621]
[1746478950974,0.7511,1815.5,1815.4,4.621]
[1746478951182,5.53717394,1815.6,1815.4,4.621]
[1746478951703,5.50812448,1815.5,1815.4,4.621]
[1746478953008,5.53721168,1815.6,1815.4,4.621]
[1746478953203,5.50812448,1815.5,1815.4,4.621]
[1746478954505,6.14037682,1815.6,1815.4,4.621]
[1746478954743,5.50812448,1815.5,1815.4,4.621]
[1746478955081,5.53735051,1815.5,1815.4,4.621]
[1746478955581,0.02922603,1815.5,1815.4,4.621]
[1746478956006,6.14037682,1815.6,1815.4,4.621]
[1746478956007,6.16960285,1815.6,1815.4,4.621]
[1746478957232,0.6616172,1815.6,1815.4,4.621]
[1746478957512,6.32350558,1815.7,1815.4,10.12938004]
[1746478957682,6.32350558,1815.7,1815.4,4.621]
[1746478957885,5.50782984,1815.6,1815.4,4.621]
[1746478958085,6.29442666,1815.7,1815.4,4.621]
[1746478958284,0.81592603,1815.7,1815.4,10.12934691]
[1746478958504,6.69644563,1815.8,1815.4,11.14220274]
[1746478958679,5.50757965,1815.7,1815.4,4.621]
[1746478959187,6.69646084,1815.8,1815.4,10.1294018]
[1746478959523,6.72568687,1815.8,1815.4,4.621]
[1746478959809,5.50763498,1815.7,1815.4,4.621]
[1746478960212,6.69651671,1815.8,1815.4,10.12939794]
[1746478960372,7.69539441,1815.8,1815.4,10.12939794]
[1746478961028,2.1879782,1815.8,1815.4,10.12939794]